Workbook

Sheet Home
A1: SPXW | B1: 0 | C1: 1 | I1: =RTD("tos.rtd", ,"MARK","SPX") -> 4026.12 | K1: Spreads | L1: Call Delta | N1: 9 | O1: 15 | P1: Buy Stop | R1: =SUM(A3:A16,A19:A32) -> 0.02111213774 | S1: SPREAD GREEKS
A2: CALLS | C2: 2022-11-28 | D2: 5 | E2: =I2 -> ASK | F2: DELTA | G2: BID | H2: ASK | I2: ASK | K2: 1 | L2: Put Delta | N2: 9 | O2: 12 | P2: 0.05 | Q2: 0.2 | R2: =LOOKUP(2,1/($R$3:$R$16<>""),B3:B16)-LOOKUP(2,1/($R$19:$R$32<>""),$B$19:$B$32) -> 85 | S2: DELTA | T2: THETA | U2: GAMMA
A3: =IF($R3="","",(B3-$I$1)/$I$1) ->  | B3: =ROUND(I1/5,0)*5+$B$1 -> 4025 | C3: ="."&$A$1&TEXT($C$2,"yymmdd")&"C"&$B3 -> .SPXW221128C4025 | D3: ="."&$A$1&TEXT($C$2,"yymmdd")&"C"&$B3+$D$2 -> .SPXW221128C4030 | F3: =RTD("tos.rtd", ,$F$2,$C3) -> 0.602 | I3: =RTD("tos.rtd", ,I$2,C3) - RTD("tos.rtd", ,I$2,D3) -> 0.75 | K3: =IF($R3="","","SELL -"&$K$2&" VERTICAL SPX 100"&IF($A$1="SPXW"," (Weeklys) "," ")&TEXT($C$2,"DD")&" "&TEXT($C$2,"MMM ")&TEXT($C$2,"YY ")&$B3&"/"&$B3+25&" CALL @"&$I3&" LMT") ->  | P3: =IF($R3="","","BUY +"&$K$2&" VERTICAL SPX 100"&IF($A$1="SPXW"," (Weeklys) "," ")&TEXT($C$2,"DD")&" "&TEXT($C$2,"MMM ")&TEXT($C$2,"YY ")&$B3&"/"&$B3+25&" CALL @"&2*$I3+$P$2&" STPLMT "&2*$I3&" MARK CBOE") ->  | Q3: =IF($R3="","","BUY +"&$K$2&" SPX 100"&IF($A$1="SPXW"," (Weeklys) "," ")&TEXT($C$2,"DD")&" "&TEXT($C$2,"MMM ")&TEXT($C$2,"YY ")&$B3&" CALL @"&2*$E3+$Q$2&" STPLMT "&2*$E3&" MARK CBOE") ->  | R3: =IF(AND(ISNUMBER(F3),ABS(F3*100)>=$N$1,ABS(F4*100)<$N$1),B3&"/"&B3+$D$2,"") ->  | S3: =RTD("tos.rtd", ,S$2,$D3&"-"&$C3)*100 -> -27.05 | T3: =RTD("tos.rtd", ,T$2,$D3&"-"&$C3) -> -0.395 | U3: =RTD("tos.rtd", ,U$2,$D3&"-"&$C3) -> -0.0381
B4: =B3+5 -> 4030 | C4: ="."&$A$1&TEXT($C$2,"yymmdd")&"C"&B4 -> .SPXW221128C4030 | D4: .SPXW221128C4035 | F4: =RTD("tos.rtd", ,$F$2,$C4) -> 0.3314 | I4: =RTD("tos.rtd", ,I$2,C4) - RTD("tos.rtd", ,I$2,D4) -> 0.55 | S4: =RTD("tos.rtd", ,S$2,$D4&"-"&$C4)*100 -> -12.22 | T4: =RTD("tos.rtd", ,T$2,$D4&"-"&$C4) -> 0.5998 | U4: =RTD("tos.rtd", ,U$2,$D4&"-"&$C4) -> -0.0155
B5: 4035 | C5: .SPXW221128C4035 | D5: .SPXW221128C4040 | F5: =RTD("tos.rtd", ,$F$2,$C5) -> 0.2092 | I5: =RTD("tos.rtd", ,I$2,C5) - RTD("tos.rtd", ,I$2,D5) -> 0.35 | S5: =RTD("tos.rtd", ,S$2,$D5&"-"&$C5)*100 -> -10.7 | T5: =RTD("tos.rtd", ,T$2,$D5&"-"&$C5) -> 0.7502 | U5: =RTD("tos.rtd", ,U$2,$D5&"-"&$C5) -> -0.0101
B6: 4040 | C6: .SPXW221128C4040 | D6: .SPXW221128C4045 | F6: =RTD("tos.rtd", ,$F$2,$C6) -> 0.1022 | I6: =RTD("tos.rtd", ,I$2,C6) - RTD("tos.rtd", ,I$2,D6) -> 0.4 | S6: =RTD("tos.rtd", ,S$2,$D6&"-"&$C6)*100 -> -1.04 | T6: =RTD("tos.rtd", ,T$2,$D6&"-"&$C6) -> -0.075 | U6: =RTD("tos.rtd", ,U$2,$D6&"-"&$C6) -> -0.0048
A7: 0.004689378359 | B7: 4045 | C7: .SPXW221128C4045 | D7: .SPXW221128C4050 | F7: =RTD("tos.rtd", ,$F$2,$C7) -> 0.0918 | I7: =RTD("tos.rtd", ,I$2,C7) - RTD("tos.rtd", ,I$2,D7) -> 0.15 | K7: SELL -1 VERTICAL SPX 100 (Weeklys) 28 Nov 22 4045/4070 CALL @0.15 LMT | P7: BUY +1 VERTICAL SPX 100 (Weeklys) 28 Nov 22 4045/4070 CALL @0.35 STPLMT 0.3 MARK CBOE | Q7: BUY +1 SPX 100 (Weeklys) 28 Nov 22 4045 CALL @0.2 STPLMT 0 MARK CBOE | R7: 4045/4050 | S7: =RTD("tos.rtd", ,S$2,$D7&"-"&$C7)*100 -> -3.37 | T7: =RTD("tos.rtd", ,T$2,$D7&"-"&$C7) -> 0.225 | U7: =RTD("tos.rtd", ,U$2,$D7&"-"&$C7) -> -0.004
B8: 4050 | C8: .SPXW221128C4050 | D8: .SPXW221128C4055 | F8: =RTD("tos.rtd", ,$F$2,$C8) -> 0.0582 | I8: =RTD("tos.rtd", ,I$2,C8) - RTD("tos.rtd", ,I$2,D8) -> 0.15 | S8: =RTD("tos.rtd", ,S$2,$D8&"-"&$C8)*100 -> -1.96 | T8: =RTD("tos.rtd", ,T$2,$D8&"-"&$C8) -> 0.125 | U8: =RTD("tos.rtd", ,U$2,$D8&"-"&$C8) -> -0.0026
B9: 4055 | C9: .SPXW221128C4055 | D9: .SPXW221128C4060 | F9: =RTD("tos.rtd", ,$F$2,$C9) -> 0.0385 | I9: =RTD("tos.rtd", ,I$2,C9) - RTD("tos.rtd", ,I$2,D9) -> 0.15 | S9: =RTD("tos.rtd", ,S$2,$D9&"-"&$C9)*100 -> -1.79 | T9: =RTD("tos.rtd", ,T$2,$D9&"-"&$C9) -> 0.125 | U9: =RTD("tos.rtd", ,U$2,$D9&"-"&$C9) -> -0.0021
B10: 4060 | C10: .SPXW221128C4060 | D10: .SPXW221128C4065 | F10: =RTD("tos.rtd", ,$F$2,$C10) -> 0.0206 | I10: =RTD("tos.rtd", ,I$2,C10) - RTD("tos.rtd", ,I$2,D10) -> 0 | S10: =RTD("tos.rtd", ,S$2,$D10&"-"&$C10)*100 -> -0.49 | T10: =RTD("tos.rtd", ,T$2,$D10&"-"&$C10) -> 0.025 | U10: =RTD("tos.rtd", ,U$2,$D10&"-"&$C10) -> -0.0008
B11: 4065 | C11: .SPXW221128C4065 | D11: .SPXW221128C4070 | F11: =RTD("tos.rtd", ,$F$2,$C11) -> 0.0157 | I11: =RTD("tos.rtd", ,I$2,C11) - RTD("tos.rtd", ,I$2,D11) -> 0 | S11: =RTD("tos.rtd", ,S$2,$D11&"-"&$C11)*100 -> -0.14 | T11: =RTD("tos.rtd", ,T$2,$D11&"-"&$C11) -> 0 | U11: =RTD("tos.rtd", ,U$2,$D11&"-"&$C11) -> -0.0004
B12: 4070 | C12: .SPXW221128C4070 | D12: .SPXW221128C4075 | F12: =RTD("tos.rtd", ,$F$2,$C12) -> 0.0143 | I12: =RTD("tos.rtd", ,I$2,C12) - RTD("tos.rtd", ,I$2,D12) -> 0.05 | S12: =RTD("tos.rtd", ,S$2,$D12&"-"&$C12)*100 -> -0.38 | T12: =RTD("tos.rtd", ,T$2,$D12&"-"&$C12) -> 0.025 | U12: =RTD("tos.rtd", ,U$2,$D12&"-"&$C12) -> -0.0005
B13: 4075 | C13: .SPXW221128C4075 | D13: .SPXW221128C4080 | F13: =RTD("tos.rtd", ,$F$2,$C13) -> 0.0105 | I13: =RTD("tos.rtd", ,I$2,C13) - RTD("tos.rtd", ,I$2,D13) -> 0 | S13: =RTD("tos.rtd", ,S$2,$D13&"-"&$C13)*100 -> -0.08 | T13: =RTD("tos.rtd", ,T$2,$D13&"-"&$C13) -> 0 | U13: =RTD("tos.rtd", ,U$2,$D13&"-"&$C13) -> -0.0002
B14: 4080 | C14: .SPXW221128C4080 | D14: .SPXW221128C4085 | F14: =RTD("tos.rtd", ,$F$2,$C14) -> 0.0097 | I14: =RTD("tos.rtd", ,I$2,C14) - RTD("tos.rtd", ,I$2,D14) -> 0.05 | S14: =RTD("tos.rtd", ,S$2,$D14&"-"&$C14)*100 -> -0.32 | T14: =RTD("tos.rtd", ,T$2,$D14&"-"&$C14) -> 0.0255 | U14: =RTD("tos.rtd", ,U$2,$D14&"-"&$C14) -> -0.0004
B15: 4085 | C15: .SPXW221128C4085 | D15: .SPXW221128C4090 | F15: =RTD("tos.rtd", ,$F$2,$C15) -> 0.0065 | I15: =RTD("tos.rtd", ,I$2,C15) - RTD("tos.rtd", ,I$2,D15) -> -0.05 | S15: =RTD("tos.rtd", ,S$2,$D15&"-"&$C15)*100 -> 0.2 | T15: =RTD("tos.rtd", ,T$2,$D15&"-"&$C15) -> -0.0256 | U15: =RTD("tos.rtd", ,U$2,$D15&"-"&$C15) -> 0.0001
B16: 4090 | C16: .SPXW221128C4090 | D16: .SPXW221128C4095 | F16: =RTD("tos.rtd", ,$F$2,$C16) -> 0.0085 | I16: =RTD("tos.rtd", ,I$2,C16) - RTD("tos.rtd", ,I$2,D16) -> 0 | S16: =RTD("tos.rtd", ,S$2,$D16&"-"&$C16)*100 -> -0.05 | T16: =RTD("tos.rtd", ,T$2,$D16&"-"&$C16) -> -0.0001 | U16: =RTD("tos.rtd", ,U$2,$D16&"-"&$C16) -> -0.0001 | V16: =LOOKUP(2,1/($R3:$R16<>""),$R3:$R16) -> 4045/4050 | W16: =LOOKUP(2,1/($R3:$R16<>""),$I3:$I16) -> 0.15 | X16: =LOOKUP(2,1/($R3:$R16<>""),$P3:$P16) -> BUY +1 VERTICAL SPX 100 (Weeklys) 28 Nov 22 4045/4070 CALL @0.35 STPLMT 0.3 MARK CBOE | Y16: =LOOKUP(2,1/($R3:$R16<>""),$Q3:$Q16) -> BUY +1 SPX 100 (Weeklys) 28 Nov 22 4045 CALL @0.2 STPLMT 0 MARK CBOE | Z16: =LOOKUP(2,1/($R3:$R16<>""),$S3:$S16) -> -3.37
A18: PUTS | E18: =$I$2 -> ASK | F18: DELTA | G18: BID | H18: ASK | I18: =pricesource -> ASK | K18: ="SELL -"&$K$2&" IRON CONDOR SPX 100"&IF($A$1="SPXW"," (Weeklys) "," ")&TEXT($C$2,"DD")&" "&TEXT($C$2,"MMM ")&TEXT($C$2,"YY ")&$V$16&"/"&$V$19&" CALL/PUT @"&W18&" LMT CBOE" -> SELL -1 IRON CONDOR SPX 100 (Weeklys) 28 Nov 22 4045/4050/3960/3955 CALL/PUT @0.8 LMT CBOE | W18: =ROUND((W16+W19)/0.05,0)*0.05 -> 0.8 | X18: =K18 -> SELL -1 IRON CONDOR SPX 100 (Weeklys) 28 Nov 22 4045/4050/3960/3955 CALL/PUT @0.8 LMT CBOE
A19: =IF($R19="","",($I$1-B19)/$I$1) ->  | B19: =B3 -> 4025 | C19: ="."&$A$1&TEXT($C$2,"yymmdd")&"P"&B19 -> .SPXW221128P4025 | D19: ="."&$A$1&TEXT($C$2,"yymmdd")&"P"&$B19-$D$2 -> .SPXW221128P4020 | F19: =RTD("tos.rtd", ,$F$2,$C19) -> -0.4899 | I19: =RTD("tos.rtd", ,I$2,C19)-RTD("tos.rtd", ,I$2,D19) -> 7.5 | K19: =IF($R19="","","SELL -"&$K$2&" VERTICAL SPX 100"&IF($A$1="SPXW"," (Weeklys) "," ")&TEXT($C$2,"DD")&" "&TEXT($C$2,"MMM ")&TEXT($C$2,"YY ")&$B19&"/"&$B19-25&" PUT @"&$I19&" LMT CBOE") ->  | P19: =IF($R19="","","BUY +"&$K$2&" VERTICAL SPX 100"&IF($A$1="SPXW"," (Weeklys) "," ")&TEXT($C$2,"DD")&" "&TEXT($C$2,"MMM ")&TEXT($C$2,"YY ")&$B19&"/"&$B19-25&" PUT @"&2*$I19+$P$2&" STPLMT "&2*$I19&" MARK CBOE") ->  | Q19: =IF($R19="","","BUY +"&$K$2&" SPX 100"&IF($A$1="SPXW"," (Weeklys) "," ")&TEXT($C$2,"DD")&" "&TEXT($C$2,"MMM ")&TEXT($C$2,"YY ")&$B19&" PUT @"&2*$E19+$Q$2&" STPLMT "&2*$E19&" MARK CBOE") ->  | R19: =IF(AND(ISNUMBER(F19),ABS(F19*100)>=$N$2,ABS(F20*100)<$N$2),B19&"/"&B19-$D$2,"") ->  | S19: =RTD("tos.rtd", ,S$2,$D19&"-"&$C19)*100 -> 2.59 | T19: =RTD("tos.rtd", ,T$2,$D19&"-"&$C19) -> 4.0501 | U19: =RTD("tos.rtd", ,U$2,$D19&"-"&$C19) -> 0.0002 | V19: =LOOKUP(2,1/(R19:R32<>""),R19:R32) -> 3960/3955 | W19: =LOOKUP(2,1/($R19:$R32<>""),$I19:$I32) -> 0.65 | X19: =LOOKUP(2,1/($R19:$R32<>""),$P19:$P32) -> BUY +1 VERTICAL SPX 100 (Weeklys) 28 Nov 22 3960/3935 PUT @1.35 STPLMT 1.3 MARK CBOE | Y19: =LOOKUP(2,1/($R19:$R32<>""),$Q19:$Q32) -> BUY +1 SPX 100 (Weeklys) 28 Nov 22 3960 PUT @0.2 STPLMT 0 MARK CBOE | Z19: =LOOKUP(2,1/($R19:$R32<>""),$S19:$S32) -> 5.1
B20: =B19-5 -> 4020 | C20: .SPXW221128P4020 | D20: .SPXW221128P4015 | F20: =RTD("tos.rtd", ,$F$2,$C20) -> -0.464 | I20: =RTD("tos.rtd", ,I$2,C20)-RTD("tos.rtd", ,I$2,D20) -> 3.8 | S20: =RTD("tos.rtd", ,S$2,$D20&"-"&$C20)*100 -> 2.84 | T20: =RTD("tos.rtd", ,T$2,$D20&"-"&$C20) -> 3.75 | U20: =RTD("tos.rtd", ,U$2,$D20&"-"&$C20) -> 0.0002
B21: =B20-5 -> 4015 | C21: .SPXW221128P4015 | D21: .SPXW221128P4010 | F21: =RTD("tos.rtd", ,$F$2,$C21) -> -0.4356 | I21: =RTD("tos.rtd", ,I$2,C21)-RTD("tos.rtd", ,I$2,D21) -> 3.4 | S21: =RTD("tos.rtd", ,S$2,$D21&"-"&$C21)*100 -> 3.04 | T21: =RTD("tos.rtd", ,T$2,$D21&"-"&$C21) -> 3.4 | U21: =RTD("tos.rtd", ,U$2,$D21&"-"&$C21) -> 0.0002
B22: 4010 | C22: .SPXW221128P4010 | D22: .SPXW221128P4005 | F22: =RTD("tos.rtd", ,$F$2,$C22) -> -0.4052 | I22: =RTD("tos.rtd", ,I$2,C22)-RTD("tos.rtd", ,I$2,D22) -> 2.6 | S22: =RTD("tos.rtd", ,S$2,$D22&"-"&$C22)*100 -> 8.87 | T22: =RTD("tos.rtd", ,T$2,$D22&"-"&$C22) -> 11.3499 | U22: =RTD("tos.rtd", ,U$2,$D22&"-"&$C22) -> 0.0024
B23: 4005 | C23: .SPXW221128P4005 | D23: .SPXW221128P4000 | F23: =RTD("tos.rtd", ,$F$2,$C23) -> -0.3165 | I23: =RTD("tos.rtd", ,I$2,C23)-RTD("tos.rtd", ,I$2,D23) -> 3.5 | S23: =RTD("tos.rtd", ,S$2,$D23&"-"&$C23)*100 -> -2.35 | T23: =RTD("tos.rtd", ,T$2,$D23&"-"&$C23) -> -5.55 | U23: =RTD("tos.rtd", ,U$2,$D23&"-"&$C23) -> -0.0023
B24: 4000 | C24: .SPXW221128P4000 | D24: .SPXW221128P3995 | F24: =RTD("tos.rtd", ,$F$2,$C24) -> -0.34 | I24: =RTD("tos.rtd", ,I$2,C24)-RTD("tos.rtd", ,I$2,D24) -> 2 | S24: =RTD("tos.rtd", ,S$2,$D24&"-"&$C24)*100 -> 9.71 | T24: =RTD("tos.rtd", ,T$2,$D24&"-"&$C24) -> 8.2996 | U24: =RTD("tos.rtd", ,U$2,$D24&"-"&$C24) -> 0.0013
B25: 3995 | C25: .SPXW221128P3995 | D25: .SPXW221128P3990 | F25: =RTD("tos.rtd", ,$F$2,$C25) -> -0.2429 | I25: =RTD("tos.rtd", ,I$2,C25)-RTD("tos.rtd", ,I$2,D25) -> 2.6 | S25: =RTD("tos.rtd", ,S$2,$D25&"-"&$C25)*100 -> 3.61 | T25: =RTD("tos.rtd", ,T$2,$D25&"-"&$C25) -> 1.3004 | U25: =RTD("tos.rtd", ,U$2,$D25&"-"&$C25) -> -0.0005
B26: 3990 | C26: .SPXW221128P3990 | D26: .SPXW221128P3985 | F26: =RTD("tos.rtd", ,$F$2,$C26) -> -0.2068 | I26: =RTD("tos.rtd", ,I$2,C26)-RTD("tos.rtd", ,I$2,D26) -> 1.7 | S26: =RTD("tos.rtd", ,S$2,$D26&"-"&$C26)*100 -> -3.27 | T26: =RTD("tos.rtd", ,T$2,$D26&"-"&$C26) -> -3.15 | U26: =RTD("tos.rtd", ,U$2,$D26&"-"&$C26) -> -0.0011
B27: 3985 | C27: .SPXW221128P3985 | D27: .SPXW221128P3980 | F27: =RTD("tos.rtd", ,$F$2,$C27) -> -0.2395 | I27: =RTD("tos.rtd", ,I$2,C27)-RTD("tos.rtd", ,I$2,D27) -> 1.5 | R27: =IF(AND(ISNUMBER(F27),ABS(F27*100)>=$N$2,ABS(F28*100)<$N$2),B27&"/"&B27-$D$2,"") ->  | S27: =RTD("tos.rtd", ,S$2,$D27&"-"&$C27)*100 -> 8.66 | T27: =RTD("tos.rtd", ,T$2,$D27&"-"&$C27) -> 4.75 | U27: =RTD("tos.rtd", ,U$2,$D27&"-"&$C27) -> -0.0001
B28: 3980 | C28: .SPXW221128P3980 | D28: .SPXW221128P3975 | F28: =RTD("tos.rtd", ,$F$2,$C28) -> -0.1529 | I28: =RTD("tos.rtd", ,I$2,C28)-RTD("tos.rtd", ,I$2,D28) -> 1.4 | S28: =RTD("tos.rtd", ,S$2,$D28&"-"&$C28)*100 -> -2.98 | T28: =RTD("tos.rtd", ,T$2,$D28&"-"&$C28) -> -2.1 | U28: =RTD("tos.rtd", ,U$2,$D28&"-"&$C28) -> -0.0006
B29: 3975 | C29: .SPXW221128P3975 | D29: .SPXW221128P3970 | F29: =RTD("tos.rtd", ,$F$2,$C29) -> -0.1827 | I29: =RTD("tos.rtd", ,I$2,C29)-RTD("tos.rtd", ,I$2,D29) -> 1.1 | S29: =RTD("tos.rtd", ,S$2,$D29&"-"&$C29)*100 -> 2.63 | T29: =RTD("tos.rtd", ,T$2,$D29&"-"&$C29) -> 1.1 | U29: =RTD("tos.rtd", ,U$2,$D29&"-"&$C29) -> -0.0004
B30: 3970 | C30: .SPXW221128P3970 | D30: .SPXW221128P3965 | F30: =RTD("tos.rtd", ,$F$2,$C30) -> -0.1563 | I30: =RTD("tos.rtd", ,I$2,C30)-RTD("tos.rtd", ,I$2,D30) -> 1 | S30: =RTD("tos.rtd", ,S$2,$D30&"-"&$C30)*100 -> 2.45 | T30: =RTD("tos.rtd", ,T$2,$D30&"-"&$C30) -> 0.95 | U30: =RTD("tos.rtd", ,U$2,$D30&"-"&$C30) -> -0.0004
B31: 3965 | C31: .SPXW221128P3965 | D31: .SPXW221128P3960 | F31: =RTD("tos.rtd", ,$F$2,$C31) -> -0.1318 | I31: =RTD("tos.rtd", ,I$2,C31)-RTD("tos.rtd", ,I$2,D31) -> 0.8 | S31: =RTD("tos.rtd", ,S$2,$D31&"-"&$C31)*100 -> 2.18 | T31: =RTD("tos.rtd", ,T$2,$D31&"-"&$C31) -> 0.775 | U31: =RTD("tos.rtd", ,U$2,$D31&"-"&$C31) -> -0.0004
A32: 0.01642275938 | B32: 3960 | C32: .SPXW221128P3960 | D32: .SPXW221128P3955 | F32: =RTD("tos.rtd", ,$F$2,$C32) -> -0.11 | I32: =RTD("tos.rtd", ,I$2,C32)-RTD("tos.rtd", ,I$2,D32) -> 0.65 | K32: SELL -1 VERTICAL SPX 100 (Weeklys) 28 Nov 22 3960/3935 PUT @0.65 LMT CBOE | P32: BUY +1 VERTICAL SPX 100 (Weeklys) 28 Nov 22 3960/3935 PUT @1.35 STPLMT 1.3 MARK CBOE | Q32: BUY +1 SPX 100 (Weeklys) 28 Nov 22 3960 PUT @0.2 STPLMT 0 MARK CBOE | R32: 3960/3955 | S32: =RTD("tos.rtd", ,S$2,$D32&"-"&$C32)*100 -> 5.1 | T32: =RTD("tos.rtd", ,T$2,$D32&"-"&$C32) -> 1.7496 | U32: =RTD("tos.rtd", ,U$2,$D32&"-"&$C32) -> -0.0009
A33: Entry price | B33: 0.45 | K33: Margin | L33: Credit | N33: 0.75 | O33: IC's | P33: SELL -1 IRON CONDOR SPX 100 (Weeklys) 25 Nov 22 4065/4070/3995/3990 CALL/PUT @0.6 LMT CBOE | Q33: SELL -1 IRON CONDOR SPX 100 (Weeklys) 25 Nov 22 4065/4070/3995/3990 CALL/PUT @0.6 LMT CBOE | S33: Expected Move | U33: =(RTD("tos.rtd",,pricesource,Data!C3 & "C" & Data!C4)+RTD("tos.rtd",,pricesource,symbolroot & "P" & Data!C4)) -> 38.6
A34: Current | B34: 0.4 | C34: Position Delta | F34: =Z16+Z19 -> 1.73 | I34: Per spread | K34: =Data!C21/K2 -> 455 | L34: =activespreadprice*100 -> 80 | N34: =L34*$N$33 -> 60 | O34: Call Stops | P34: BUY +1 VERTICAL SPX 100 (Weeklys) 25 Nov 22 4065/4090 CALL @0.75 STPLMT 0.7 MARK CBOE | Q34: BUY +1 SPX 100 (Weeklys) 25 Nov 22 4065 CALL @0.2 STPLMT 0 MARK CBOE | S34: Expected Move Upper | U34: =I1+U33 -> 4064.72
A35: Spreads | B35: 1 | I35: Total | K35: =K34*K2 -> 455 | L35: =L34*K2 -> 80 | N35: =L35*$N$33 -> 60 | O35: Put Stops | P35: BUY +1 VERTICAL SPX 100 (Weeklys) 25 Nov 22 3995/3970 PUT @0.55 STPLMT 0.5 MARK CBOE | Q35: BUY +1 SPX 100 (Weeklys) 25 Nov 22 3995 PUT @0.2 STPLMT 0 MARK CBOE | S35: Expected Move Lower | U35: =I1-U33 -> 3987.52
A36: Profit/Loss $ | B36: =IF(AND(B33>0,B35>0),100*(B35*(B33-B34)-Data!E22),"") -> -4.92 | I36: Max Yield | K36: =L34/K34 -> 0.1758241758 | L36: Target | N36: =K36*N33 -> 0.1318681319 | O36: Short Call | P36: Delta | Q36: =Data!C7 -> 0.0918 | R36: To Mark | S36: =Data!C5-Home!I1 -> 18.88 | T36: EM Ratio | U36: =S36/U33 -> 0.489119171
A37: Profit/Loss % | B37: =IF(AND(B33>0,B35>0),B36/Data!C21,"") -> -0.01081318681 | O37: Short Put | P37: Delta | Q37: =Data!C9 -> -0.11 | R37: To Mark | S37: =Home!I1-Data!C6 -> 66.12 | T37: EM Ratio | U37: =S37/U33 -> 1.712953368
A38: Commissions | B38: =Data!C22 -> 9.92

Sheet Settings
B1: Settings
B3: Expected Move Threshold - Green | C3: 1.75 | E3: Above this value
B4: Expected Move Threshold - Normal | C4: 1.25 | E4: Between this and Green value
B5: Expected Move Threshold - Alert | C5: 1 | E5: Between this and Normal value
B6: Expected Move Threshold - Warning | C6: 0.8 | E6: Below Alert value
B8: Commissions per contract | C8: 1.24

Sheet Data
B1: Data
B3: Symbol Root | C3: ="." & Home!A1 & TEXT(Home!C2,"yymmdd") -> .SPXW221128
B4: ATM Strike | C4: =MROUND(Home!I1,5) -> 4025
B5: Short Call Strike | C5: =LOOKUP(2,1/(Home!$R3:$R16<>""),Home!$B3:$B16) -> 4045 | E5: =RTD("tos.rtd", ,pricesource,symbolroot&"C"&C5) -> 0.65
B6: Short Put Strike | C6: =LOOKUP(2,1/(Home!R19:R32<>""),Home!B19:B32) -> 3960 | E6: =RTD("tos.rtd", ,pricesource,symbolroot&"P"&C6) -> 3
B7: Call Delta | C7: =LOOKUP(2,1/(Home!$R3:$R16<>""),Home!$F3:$F16) -> 0.0918
B8: Call Distance to EM
B9: Put Delta | C9: =LOOKUP(2,1/(Home!$R19:$R32<>""),Home!$F19:$F32) -> -0.11
B10: Put Distance to EM
B11: Long Call Strike | C11: =C5+Home!D2 -> 4050 | E11: =RTD("tos.rtd", ,pricesource,symbolroot&"C"&C11) -> 0.5
B12: Long Put Strike | C12: =C6-Home!D2 -> 3955 | E12: =RTD("tos.rtd", ,pricesource,symbolroot&"P"&C12) -> 2.35
B13: Spread price | E13: =G18 -> 0.8
B15: Position
B16: Active position | C16: 1
B17: Call - Long strike | C17: 4050 | E17: =RTD("tos.rtd", ,pricesource,symbolroot&"C"&C17) -> 0.5
B18: Call - Short strike | C18: 4045 | E18: =RTD("tos.rtd", ,pricesource,symbolroot&"C"&C18) -> 0.65 | F18: =E18-E17 -> 0.15 | G18: =F18+F19 -> 0.8
B19: Put - Short strike | C19: 3960 | E19: =RTD("tos.rtd", ,pricesource,symbolroot & "P" & C19) -> 3 | F19: =E19-E20 -> 0.65
B20: Put - Long strike | C20: 3955 | E20: =RTD("tos.rtd", ,pricesource,symbolroot & "P" & C20) -> 2.35
B21: Margin required | C21: =Home!B35*(Home!D2-Home!B33)*100 -> 455
B22: Commissions | C22: =IF(Home!B34=0,4*Settings!C8,8*Settings!C8)*Home!B35 -> 9.92 | E22: =C22/100 -> 0.0992
